bitfinex-derivatives/quotes_ETHF0:USTF0_20250110
["timestamp","ask_amount","ask_price","bid_price","bid_amount"]
[1736538664376,0.30348,3294.9,3294.8,0.74638]
[1736538664578,0.30348,3295.0,3294.9,0.30347]
[1736538664779,0.9029,3295.4,3294.8,0.4429]
[1736538664984,0.30348,3294.9,3294.8,0.74639]
[1736538666380,0.75862,3295.3,3294.8,0.74639]
[1736538666583,3.96615,3296.5,3295.4,0.75857]
[1736538666776,3.96615,3296.5,3295.8,3.2078]
[1736538666777,3.2078,3296.5,3295.8,3.2078]
[1736538666980,0.30334,3296.4,3296.2,0.30336]
[1736538667887,3.2078,3296.5,3295.9,41.2567]
[1736538668087,0.30335,3296.4,3296.3,0.30335]
[1736538668286,3.2078,3296.5,3295.9,41.2567]
[1736538668489,0.30335,3296.3,3295.9,41.2567]
[1736538668684,3.2078,3296.5,3296.2,0.30336]
[1736538669885,0.30338,3296.0,3295.9,0.4567]
[1736538670079,0.30338,3296.0,3295.9,0.76009]
[1736538670282,0.30338,3296.0,3295.9,0.4567]
[1736538671887,0.30339,3295.9,3295.8,3.2078]
[1736538672588,1.20502,3296.2,3295.5,0.4376]
[1736538672784,0.30341,3295.6,3295.5,0.74101]
[1736538673289,0.30341,3295.7,3295.6,0.3034]
[1736538673688,0.75845,3296.0,3295.4,0.4348]
[1736538673882,0.30342,3295.5,3295.4,0.73823]
[1736538675285,0.30342,3295.5,3295.4,0.4348]
[1736538675694,0.30343,3295.4,3295.3,3.2078]
[1736538675983,3.96634,3295.7,3295.0,0.4753]
[1736538675984,0.30346,3295.1,3295.0,0.4643]
[1736538676193,0.30346,3295.1,3295.0,0.76777]
[1736538677485,0.30346,3295.1,3295.0,0.4643]
[1736538677792,0.30348,3294.9,3294.8,0.30349]
[1736538678483,3.2078,3295.3,3294.6,0.4567]
[1736538678687,3.2078,3295.3,3294.7,0.30349]
[1736538678688,0.3035,3294.8,3294.7,0.30349]
[1736538678893,0.75864,3295.2,3294.6,0.4567]
[1736538678894,0.3035,3294.7,3294.6,0.7602]
[1736538679383,3.2078,3294.9,3294.5,0.4388]
[1736538679686,0.30353,3294.3,3294.2,0.78454]
[1736538680389,0.30353,3294.3,3294.2,0.481]
[1736538681087,0.30353,3294.3,3294.2,0.78454]
[1736538681893,0.30353,3294.3,3294.2,0.481]
[1736538682792,0.30353,3294.3,3294.2,0.78454]
[1736538683383,0.30353,3294.3,3294.2,0.481]
[1736538683596,0.30353,3294.3,3294.2,0.78454]
[1736538683891,0.30353,3294.3,3294.2,0.481]
[1736538684092,0.30353,3294.3,3294.1,40.8]
[1736538684287,0.30356,3294.0,3293.9,3.2078]
[1736538684489,0.30356,3294.0,3293.9,3.51137]
[1736538684790,0.30356,3294.0,3293.9,44.0078]
[1736538685187,0.30356,3294.0,3293.9,40.8]
[1736538686289,2.55473882,3294.3,3293.9,40.8]
[1736538686486,0.30355,3294.2,3294.1,0.30355]
[1736538686691,0.30356,3294.0,3293.9,40.8]
[1736538688690,0.30351,3294.6,3294.5,0.30351]
[1736538688894,3.2078,3294.9,3294.4,3.2078]
[1736538689193,0.3035,3294.8,3294.6,0.3035]
[1736538689388,0.3035,3294.8,3294.7,40.8]
[1736538690598,0.30354,3294.3,3294.2,0.30354]
[1736538690796,0.30354,3294.3,3293.9,4.1257]
[1736538690797,0.30351,3294.6,3294.3,0.30353]
[1736538691089,0.30356,3294.0,3293.9,4.1257]
[1736538691392,0.75877,3294.6,3293.9,4.1257]
[1736538691393,2.10309876,3294.4,3293.9,4.1257]
[1736538691590,0.30355,3294.1,3294.0,41.10356]
[1736538691787,2.10309876,3294.4,3294.0,40.8]
[1736538692090,0.30355,3294.2,3294.1,0.30355]
[1736538692996,0.30354,3294.2,3294.1,0.30355]
[1736538693693,0.30355,3294.1,3294.0,41.10356]
[1736538693895,0.30355,3294.1,3294.0,40.8]
[1736538694092,0.3036,3293.6,3293.4,3.51141]
[1736538694288,5.31089876,3294.1,3293.3,0.4526]
[1736538694489,0.30358,3293.8,3293.3,0.4526]
[1736538694684,0.30358,3293.8,3293.5,0.30361]
[1736538694892,0.30358,3293.8,3293.4,40.8]
[1736538695093,0.30358,3293.8,3293.7,0.30359]
[1736538695493,0.30358,3293.8,3293.4,40.8]
[1736538695494,0.4662,3294.3,3293.4,44.0078]
[1736538695695,0.30356,3294.1,3294.0,0.30356]
[1736538695999,0.30356,3294.1,3294.0,1.23856]
[1736538696696,0.30355,3294.2,3294.1,0.30354]
[1736538696893,0.30355,3294.1,3294.0,0.935]
[1736538697297,1.281,3294.7,3294.0,0.935]
[1736538697495,0.30352,3294.5,3294.0,0.935]
[1736538697796,0.30352,3294.5,3294.4,0.30352]
[1736538697993,0.30351,3294.6,3294.5,0.30351]
[1736538698390,0.30351,3294.6,3294.5,41.10351]
[1736538698791,0.3035,3294.7,3294.6,0.3035]
[1736538699193,0.30351,3294.6,3294.5,40.8]
[1736538699994,0.30355,3294.2,3294.1,0.30354]
[1736538700194,0.30354,3294.3,3294.2,0.30353]
[1736538700394,0.30355,3294.1,3294.0,1.23856]
[1736538700594,0.75877,3294.6,3294.0,1.23856]
[1736538700595,0.30355,3294.2,3294.1,0.30355]
[1736538701100,0.75877,3294.6,3294.0,41.735]
[1736538701295,0.30355,3294.1,3294.0,42.03855]
[1736538702097,0.30355,3294.2,3294.1,0.30354]
[1736538703098,3.96657,3294.6,3294.0,41.735]
[1736538703296,0.30355,3294.1,3294.0,41.735]
[1736538703705,0.30355,3294.1,3294.0,41.2664]
[1736538703904,0.30359,3293.7,3293.6,0.479]
[1736538704101,0.30359,3293.7,3293.6,0.7826]
[1736538704304,0.30359,3293.7,3293.6,41.5826]
[1736538704804,0.30359,3293.8,3293.7,0.30358]
[1736538705501,0.30359,3293.7,3293.6,41.5826]
[1736538706101,4.4888,3294.2,3293.6,41.279]
[1736538706309,0.30357,3294.0,3293.9,0.30357]
[1736538706505,0.30356,3294.1,3294.0,0.30355]
[1736538706707,0.30353,3294.4,3294.3,0.30353]
[1736538707003,0.30353,3294.4,3294.0,0.4528]
[1736538707303,0.30353,3294.4,3294.3,0.30353]
[1736538707501,4.4888,3295.0,3294.0,0.4528]
[1736538707800,0.30352,3294.5,3294.4,0.30352]
[1736538709603,5.24749,3295.0,3294.0,0.4528]
[1736538709805,0.30355,3294.1,3294.0,0.4528]
[1736538709999,0.75882,3294.4,3293.5,3.96682]
[1736538710205,0.30357,3294.0,3293.9,0.30357]
[1736538710405,0.30358,3293.9,3293.8,0.30357]
[1736538710607,0.30357,3294.0,3293.9,0.30356]
[1736538714918,0.30359,3293.8,3293.7,0.30358]
[1736538715214,0.30359,3293.7,3293.6,0.479]
[1736538715513,0.30362,3293.4,3293.3,0.76902]
[1736538715911,0.30362,3293.4,3293.3,0.4654]
[1736538716223,0.30365,3293.1,3293.0,0.4512]
[1736538718816,0.30367,3292.8,3292.7,40.8]
[1736538719225,0.30367,3292.8,3292.7,0.30368]
[1736538720222,3.2078,3293.0,3292.5,41.2454]
[1736538720422,0.30369,3292.6,3292.5,41.2454]
[1736538721217,0.30369,3292.6,3292.5,0.4454]
[1736538721720,0.30369,3292.6,3292.5,41.2454]
[1736538724325,3.2078,3293.0,3292.5,41.2454]
[1736538724515,3.2078,3293.0,3292.8,0.30367]
[1736538724720,3.2078,3293.0,3292.9,0.30366]
[1736538725224,0.30362,3293.4,3293.3,0.30363]
[1736538725819,7.50499876,3293.7,3293.0,0.4685]
[1736538726122,0.30365,3293.1,3293.0,0.4685]
[1736538726826,0.30365,3293.0,3292.9,41.10366]
[1736538727123,0.30365,3293.0,3292.9,40.8]
[1736538728523,2.55369876,3293.2,3292.7,0.30368]
[1736538728823,0.30368,3292.7,3292.6,0.4685]
[1736538729621,0.30368,3292.7,3292.6,0.77219]
[1736538729820,0.30368,3292.7,3292.6,0.4685]
[1736538730022,2.10309876,3292.9,3292.5,41.2454]
[1736538730322,0.30369,3292.6,3292.5,41.2454]
[1736538731023,2.10309876,3292.6,3292.2,0.448]
[1736538731219,0.30372,3292.3,3292.2,0.448]
[1736538731918,0.30372,3292.3,3292.2,0.75173]
[1736538732431,2.10309876,3292.3,3292.1,0.4769]
[1736538732618,3.51153,3292.2,3292.1,0.4769]
[1736538732814,0.30376,3291.9,3291.8,1.22866]
[1736538733621,3.2078,3292.2,3291.8,0.9249]
[1736538733827,0.30374,3292.1,3292.0,0.30374]
[1736538734429,0.30375,3292.0,3291.9,0.30375]
[1736538734921,0.30376,3291.9,3291.8,1.22866]
[1736538735224,0.30375,3292.0,3291.9,0.30375]
[1736538739223,0.30375,3292.0,3291.8,4.1327]
[1736538739224,3.2078,3292.2,3291.8,4.1327]
[1736538739427,0.30376,3291.9,3291.8,4.43646]
[1736538739722,0.30376,3291.9,3291.8,0.9249]
[1736538739915,0.30376,3291.9,3291.8,0.4769]
[1736538740121,0.30377,3291.8,3291.7,40.8]
[1736538741024,0.4572,3291.9,3291.5,0.4699]
[1736538741025,0.30378,3291.6,3291.5,0.4699]
[1736538741617,0.30378,3291.6,3291.5,41.57369]
[1736538742024,0.30378,3291.6,3291.5,41.2699]
[1736538743223,1.21661,3291.9,3291.3,0.4757]
[1736538743224,0.3038,3291.4,3291.3,0.4757]
[1736538744917,0.30384,3291.0,3290.9,3.2078]
[1736538745118,6.59189876,3291.0,3290.3,0.3039]
[1736538745323,0.3039,3290.4,3290.2,0.30391]
[1736538745524,0.30389,3290.4,3290.3,0.4709]
[1736538745824,2.10309876,3290.7,3290.4,0.30389]
[1736538746032,0.30388,3290.6,3290.5,0.4545]
[1736538748028,2.10309876,3290.7,3290.3,0.4709]
[1736538748333,0.30391,3290.2,3290.1,40.8]
[1736538749931,0.30394,3289.9,3289.8,0.9268]
[1736538750125,0.30394,3289.9,3289.8,1.23075]
[1736538750326,0.30394,3289.9,3289.8,42.03075]
[1736538751929,3.96753,3290.5,3289.8,42.03075]
[1736538751930,3.2078,3290.5,3289.8,41.7268]
[1736538752233,0.3039,3290.4,3290.3,0.30389]
[1736538753532,0.7597,3290.6,3290.1,3.2078]
[1736538753733,0.30391,3290.2,3290.1,3.2078]
[1736538753929,0.30394,3289.9,3289.8,41.2559]
[1736538754135,0.30394,3289.9,3289.8,41.55985]
[1736538754535,0.30392,3290.2,3290.1,0.30392]
[1736538754731,0.30377,3291.8,3291.7,0.30377]
[1736538754941,0.30377,3291.7,3291.6,3.2078]
[1736538755237,0.30377,3291.7,3291.6,44.0078]
[1736538756440,3.2078,3292.1,3291.6,44.0078]
[1736538756633,0.30373,3292.2,3292.1,0.30373]
[1736538757436,1.282,3292.4,3291.6,44.76725]
[1736538757633,0.9074,3292.6,3292.0,3.2078]
[1736538757828,1.5857,3292.5,3292.1,0.4609]
[1736538758032,0.30372,3292.3,3292.2,0.30373]
[1736538758432,0.30372,3292.3,3292.1,0.4609]
[1736538758633,1.282,3292.5,3292.1,0.4609]
[1736538758933,0.30373,3292.2,3292.1,0.4609]
[1736538759639,0.30376,3291.9,3291.8,0.30376]
[1736538759938,2.10309876,3292.3,3291.6,0.4407]
[1736538760141,0.30375,3292.0,3291.9,0.30375]
[1736538760440,2.10309876,3292.3,3291.6,0.4407]
[1736538760733,0.30374,3292.1,3292.0,0.30374]
[1736538761040,0.30373,3292.2,3292.1,0.30374]
[1736538761537,0.30372,3292.3,3292.1,0.30374]
[1736538762040,0.30372,3292.3,3291.6,0.4407]
[1736538762335,1.64861,3292.4,3292.3,0.30372]
[1736538762542,3.96698,3292.9,3291.9,3.96718]
[1736538762543,0.30369,3292.7,3291.9,3.96718]
[1736538762739,1.281,3292.7,3292.0,0.4544]
[1736538762940,0.3037,3292.6,3292.5,0.3037]
[1736538763141,0.30371,3292.5,3292.3,0.30371]
[1736538763437,0.30371,3292.5,3291.6,0.4407]
[1736538763438,3.2078,3292.5,3291.6,0.4407]
[1736538763741,0.30375,3292.1,3291.9,0.30375]
[1736538763935,2.10309876,3292.3,3291.6,0.4407]
[1736538764243,0.30373,3292.2,3291.6,0.4407]
[1736538764434,2.10309876,3292.3,3291.6,0.4407]
[1736538764739,0.30374,3292.1,3292.0,0.30374]
[1736538765343,0.30375,3292.0,3291.9,0.30375]
[1736538765535,2.10309876,3292.3,3291.6,0.4407]
[1736538766042,0.30374,3292.1,3292.0,0.30374]
[1736538766245,0.30375,3292.0,3291.9,0.30375]
[1736538767245,0.30374,3292.2,3292.1,0.30373]
[1736538768338,1.281,3292.4,3292.2,0.30372]
[1736538768535,5.24793,3293.1,3292.3,3.2078]
[1736538768742,0.30369,3292.7,3292.6,0.30368]
[1736538768944,0.30367,3292.9,3292.7,0.30367]
[1736538769243,4.4888,3293.1,3292.7,0.30368]
[1736538769244,0.30368,3292.8,3292.7,0.30368]
[1736538769447,1.281,3293.0,3292.4,41.2408]
[1736538769841,0.30368,3292.7,3292.5,0.3037]
[1736538770146,0.30368,3292.7,3292.6,0.30369]
[1736538770741,0.30369,3292.6,3292.5,0.3037]
[1736538770943,2.10309876,3292.9,3292.4,41.2408]
[1736538771142,1.281,3292.8,3292.4,41.2408]
[1736538771343,0.3037,3292.6,3292.5,0.3037]
[1736538771741,0.30369,3292.7,3292.6,0.30369]
[1736538771942,1.58468,3292.8,3292.7,0.30368]
[1736538772441,1.281,3292.8,3292.7,0.30368]
[1736538773247,0.30368,3292.7,3292.6,0.30369]
[1736538773448,0.3037,3292.6,3292.5,0.30369]
[1736538773749,0.30369,3292.7,3292.6,0.30369]
[1736538773943,0.30368,3292.7,3292.6,0.30369]
[1736538774156,1.281,3292.8,3292.7,0.30368]
[1736538776750,2.10309876,3293.2,3292.4,0.4408]
[1736538776956,0.9308,3293.3,3292.5,0.75926]
[1736538777247,0.30366,3293.0,3292.9,0.30366]
[1736538777445,1.58464,3293.2,3293.1,0.30365]
[1736538777644,1.281,3293.2,3292.7,3.2078]
[1736538777845,0.30366,3293.0,3292.9,0.30366]
[1736538778050,0.30366,3293.0,3292.8,0.30367]
[1736538778252,3.38409876,3293.2,3292.7,3.2078]
[1736538778450,0.30366,3293.0,3292.9,0.30366]
[1736538779048,4.40145,3293.5,3292.7,3.2078]
[1736538779049,5.74549876,3293.5,3292.7,3.2078]
[1736538779252,0.30361,3293.5,3293.4,0.30362]
[1736538779555,0.30361,3293.6,3293.5,0.30361]
[1736538779947,0.9058,3293.7,3293.3,0.4421]
[1736538780248,0.30362,3293.4,3293.3,0.74572]
[1736538780849,0.30362,3293.4,3293.3,0.74573]
[1736538781254,0.30362,3293.4,3293.3,0.4421]
[1736538782349,0.30362,3293.4,3293.3,0.74573]
[1736538783052,0.30361,3293.5,3293.4,0.30361]
[1736538783853,0.30361,3293.6,3293.5,0.30361]
[1736538784048,1.281,3293.8,3293.3,0.4421]
[1736538784255,5.3982,3294.0,3293.3,0.4421]
[1736538784552,5.3982,3294.0,3293.4,40.8]
[1736538784859,0.3036,3293.7,3293.6,0.3036]
[1736538785061,0.30358,3293.9,3293.8,0.30358]
[1736538785259,0.30358,3293.9,3293.3,1.20116]
[1736538785260,5.3982,3294.0,3293.2,3.2078]
[1736538785457,0.30361,3293.5,3293.4,0.30361]
[1736538785656,0.30361,3293.5,3293.4,41.10361]
[1736538785858,0.30362,3293.4,3293.3,0.30362]
[1736538786361,0.30363,3293.3,3293.2,3.98473]
[1736538786549,0.30362,3293.4,3293.3,0.30362]
[1736538786754,0.30363,3293.4,3293.3,0.30362]
[1736538786950,0.30363,3293.3,3293.2,3.98473]
[1736538788867,0.30363,3293.3,3293.2,0.77693]
[1736538789069,0.30365,3293.0,3292.9,0.73956]
[1736538789261,0.30365,3293.0,3292.9,0.8951]
[1736538789768,0.30366,3292.9,3292.8,3.2078]
[1736538790067,0.30366,3292.9,3292.8,3.51147]
[1736538790368,0.30366,3292.9,3292.8,3.2078]
[1736538790757,2.40675876,3292.9,3292.8,3.2078]
[1736538790973,0.30369,3292.6,3292.5,0.9042]
[1736538791358,0.3037,3292.5,3292.4,40.8]
[1736538791764,0.3037,3292.5,3292.4,41.10371]
[1736538792564,0.30369,3292.7,3292.6,0.30368]
[1736538792761,1.28,3292.9,3292.4,40.8]
[1736538793168,1.58367,3292.9,3292.8,0.30367]
[1736538794266,1.28,3292.9,3292.8,0.30367]
[1736538794870,3.51142,3293.4,3293.3,0.30363]
[1736538795068,0.30361,3293.5,3293.4,0.30361]
[1736538795371,0.9365,3293.7,3293.3,0.30362]
[1736538795372,0.30362,3293.4,3293.3,0.30362]
[1736538795673,1.5836,3293.6,3293.5,0.30361]
[1736538796266,0.30361,3293.5,3293.4,0.30361]
[1736538796463,1.5836,3293.6,3293.5,0.30361]
[1736538796667,0.30362,3293.4,3293.3,0.30362]
[1736538797473,0.30361,3293.5,3293.4,0.30361]
[1736538798072,1.28,3293.6,3293.2,0.9149]
[1736538798271,0.30362,3293.4,3293.3,0.30362]
[1736538798870,1.28,3293.6,3293.3,40.8]
[1736538799068,1.28,3293.6,3293.4,0.73831]
[1736538799069,0.30361,3293.5,3293.4,0.73831]
[1736538799378,0.30361,3293.5,3293.4,0.4347]
[1736538799576,0.30361,3293.5,3293.4,0.73832]
[1736538799774,0.30361,3293.5,3293.4,0.4347]
[1736538800677,0.30361,3293.5,3293.4,0.73832]
[1736538801075,1.5836,3293.6,3293.5,0.30361]
[1736538801471,1.28,3293.6,3293.5,3.51141]
[1736538801771,0.30357,3294.0,3293.9,0.30356]
[1736538801973,1.28,3294.1,3294.0,0.30356]
[1736538802167,0.30354,3294.3,3294.2,0.30353]
[1736538802774,0.30355,3294.2,3294.1,0.30355]
[1736538803679,7.49679876,3294.4,3293.9,0.4464]
[1736538803875,0.30356,3294.1,3294.0,0.30355]
[1736538804374,7.49679876,3294.4,3293.9,0.4464]
[1736538804573,0.30356,3294.2,3294.1,0.30355]
[1736538806176,7.49679876,3294.4,3293.9,0.4464]
[1736538806375,0.30356,3294.1,3294.0,0.30356]
[1736538806676,0.30342,3295.6,3294.2,0.75886]
[1736538806880,13.07179711,3296.1,3295.5,3.2078]
[1736538807078,13.37516711,3296.1,3295.9,0.30338]
[1736538807272,13.07179711,3296.1,3295.9,0.30338]
[1736538807581,13.07179711,3296.1,3296.0,0.30338]
[1736538807783,13.07179711,3296.1,3295.3,0.9454]
[1736538807784,3.2078,3296.6,3295.9,3.2078]
[1736538807978,3.2078,3296.6,3296.5,0.30333]
[1736538808173,3.2078,3296.6,3296.5,41.10333]
[1736538808377,3.98117,3297.2,3296.9,0.30329]
[1736538808876,3.98117,3297.2,3296.5,40.8]
[1736538808877,0.30328,3297.1,3296.8,0.3033]
[1736538809076,0.30329,3297.0,3296.7,0.30331]
[1736538809282,15.90922523,3299.4,3296.7,0.30331]
[1736538809283,3.51104,3297.6,3297.3,0.30325]
[1736538809682,0.30325,3297.5,3297.2,0.30326]
[1736538809978,3.2078,3297.6,3297.2,0.30326]
[1736538810284,3.2078,3297.6,3296.7,3.2078]
[1736538810575,0.30327,3297.3,3296.8,0.3033]
[1736538810780,3.2078,3297.6,3296.7,3.2078]
[1736538810979,0.30329,3297.1,3296.7,3.2078]
[1736538811281,0.30329,3297.1,3296.5,40.8]
[1736538811282,2.10309876,3297.1,3296.5,40.8]
[1736538811482,0.3033,3296.9,3296.6,0.30332]
[1736538811774,0.30332,3296.7,3296.5,41.10332]
[1736538811982,0.30332,3296.7,3296.3,3.6731]
[1736538812177,4.4868,3297.2,3296.3,3.6731]
[1736538812486,0.30332,3296.7,3296.5,0.30332]
[1736538813073,0.30332,3296.7,3296.3,3.6731]
[1736538813280,5.24498,3297.2,3296.3,3.6731]
[1736538813485,0.30328,3297.1,3296.3,3.51115]
[1736538813679,0.76508,3297.1,3296.3,3.51115]
[1736538813881,0.76508,3297.1,3296.4,0.30334]
[1736538813882,1.279,3297.0,3296.4,0.30334]
[1736538814180,1.279,3297.0,3296.3,3.2078]
[1736538814577,3.2078,3296.7,3295.9,44.0078]
[1736538814885,0.30335,3296.4,3296.1,0.30336]
[1736538815179,0.4506,3296.6,3296.2,0.30335]
[1736538815372,0.30334,3296.4,3295.9,44.0078]
[1736538815578,0.30336,3296.3,3296.0,0.30337]
[1736538815774,0.30336,3296.3,3295.9,44.0078]
[1736538815775,0.30334,3296.4,3296.1,0.30336]
[1736538816382,0.30334,3296.4,3295.9,44.0078]
[1736538816581,0.30334,3296.4,3296.2,0.30336]
[1736538816776,0.4506,3296.6,3296.2,0.30336]
[1736538817479,0.30335,3296.4,3296.2,0.30336]
[1736538817683,0.30335,3296.4,3295.9,44.0078]
[1736538817684,0.30334,3296.5,3296.0,0.30338]
[1736538817886,0.30334,3296.5,3296.3,0.30335]
[1736538818487,0.30334,3296.5,3295.9,44.0078]
[1736538818679,0.30334,3296.5,3296.2,0.30335]
[1736538818987,0.4506,3296.6,3296.2,0.30335]
[1736538819186,0.4506,3296.6,3295.9,44.0078]
[1736538819383,0.30335,3296.4,3296.2,0.30336]
[1736538820383,0.30336,3296.3,3296.1,0.30337]
[1736538821183,0.30336,3296.3,3296.2,0.30336]
[1736538821386,0.30335,3296.4,3296.2,0.30336]
[1736538822482,0.4506,3296.6,3296.2,0.30336]
[1736538822682,0.30333,3296.5,3296.1,0.30337]
[1736538822886,0.30336,3296.3,3296.1,0.30337]
[1736538823387,0.30336,3296.3,3296.2,0.30336]
[1736538824179,2.54534144,3296.5,3295.9,44.0078]
[1736538824385,0.30338,3296.0,3295.9,44.0078]
[1736538824581,0.30338,3296.0,3295.9,44.31119]
[1736538824785,0.30338,3296.0,3295.9,44.0078]
[1736538824985,0.30338,3296.0,3295.9,44.31119]
[1736538825793,0.30337,3296.1,3296.0,0.30337]
[1736538827694,0.30338,3296.1,3296.0,0.30338]
[1736538829398,1.279,3296.4,3295.9,44.0078]
[1736538829794,0.30338,3296.1,3296.0,0.30337]
[1736538832599,0.30333,3296.6,3296.5,0.30332]
[1736538832796,4.9486,3297.1,3296.3,3.2078]
[1736538833093,4.9486,3297.1,3296.5,40.8]
[1736538833299,0.30332,3296.7,3296.6,0.73991]
[1736538833492,4.9486,3297.1,3296.6,0.4366]
[1736538833695,0.30328,3297.1,3297.0,0.30328]
[1736538833891,1.279,3297.3,3296.6,0.4366]
[1736538834190,0.30326,3297.3,3297.2,0.30326]
[1736538834390,3.2078,3297.5,3296.8,0.75827]
[1736538834602,0.30326,3297.3,3297.2,0.30326]
[1736538835190,0.30327,3297.2,3297.1,0.30327]
[1736538835493,0.30317,3298.3,3298.1,0.30318]
[1736538835690,0.30315,3298.5,3298.2,0.30317]
[1736538835892,3.2078,3298.9,3298.2,40.8]
[1736538836097,0.30317,3298.3,3298.2,40.8]
[1736538836294,0.30316,3298.4,3298.2,40.8]
[1736538836492,0.30317,3298.3,3298.2,40.8]
[1736538837495,0.30318,3298.2,3298.1,3.2078]
[1736538838002,0.30318,3298.2,3298.1,3.51098]
[1736538838194,0.30318,3298.2,3298.1,3.2078]
[1736538840199,0.30319,3298.1,3297.9,0.3032]
[1736538840596,3.6553,3298.4,3297.6,3.6743]
[1736538840796,0.3032,3298.0,3297.9,0.3032]
[1736538841298,0.3032,3298.0,3297.8,0.30321]
[1736538841599,2.1003541,3298.3,3297.6,3.6743]
[1736538841795,0.05,3297.7,3297.6,3.97753]
[1736538843796,0.05,3297.7,3297.6,3.6743]
[1736538844001,0.05,3297.7,3297.6,3.97753]
[1736538845502,0.35322,3297.7,3297.6,3.6743]
[1736538845703,0.30324,3297.6,3297.4,0.30325]
[1736538847508,0.35323,3297.7,3297.2,0.462]
[1736538847698,0.05,3297.7,3297.2,2.5623541]
[1736538848002,0.05,3297.7,3297.6,0.30323]
[1736538848300,1.7648,3297.9,3297.5,2.1003541]
[1736538848604,0.30318,3298.2,3297.9,0.3032]
[1736538848904,0.30318,3298.2,3297.8,5.3081541]
[1736538848905,0.30316,3298.4,3298.2,0.30317]
[1736538849210,0.30318,3298.2,3298.1,0.30318]
[1736538849399,0.4355,3298.5,3297.8,3.2078]
[1736538849704,0.30319,3298.0,3297.9,40.8]
[1736538849997,0.30322,3297.7,3297.6,0.30323]
[1736538850205,2.1003541,3297.8,3297.4,3.2078]
[1736538850403,0.30323,3297.6,3297.5,0.30324]
[1736538851298,2.47309,3298.0,3297.4,44.0078]
[1736538851504,0.4371,3298.0,3297.9,0.3032]
[1736538851802,0.7403,3298.0,3297.9,0.3032]
[1736538852005,1.52608954,3298.6,3297.8,3.2078]
[1736538852206,0.30318,3298.2,3297.9,0.3032]
[1736538852501,0.30318,3298.2,3298.1,0.30318]
[1736538853203,0.9154,3298.5,3297.8,3.2078]
[1736538853399,0.3032,3297.9,3297.8,3.2078]
[1736538853712,2.1003541,3298.1,3297.6,0.4346]
[1736538854009,0.30319,3298.0,3297.6,0.73782]
[1736538854207,2.1003541,3298.1,3297.6,0.73782]
[1736538854407,0.30322,3297.8,3297.7,0.30322]
[1736538854901,0.30319,3298.1,3298.0,0.30319]
[1736538855307,0.30318,3298.2,3298.1,0.30318]
[1736538855609,0.3032,3298.0,3297.6,0.4346]
[1736538855907,3.2078,3298.3,3297.6,0.4346]
[1736538856108,1.67329,3298.5,3297.6,0.4346]
[1736538856406,0.30319,3298.1,3298.0,0.30319]
[1736538856606,1.67329,3298.5,3298.1,0.30318]
[1736538857197,0.9154,3298.5,3297.8,3.2078]
[1736538857408,0.30319,3298.1,3298.0,0.30319]
[1736538857605,0.7579,3298.4,3297.8,3.2078]
[1736538857908,0.3032,3297.9,3297.8,3.2078]
[1736538858106,0.30322,3297.7,3297.6,0.73782]
[1736538858310,0.30322,3297.7,3297.6,0.4346]
[1736538858809,0.4569,3297.9,3297.4,44.0078]
[1736538859110,0.4493,3297.8,3297.7,0.30322]
[1736538859408,0.30318,3298.2,3298.1,0.30318]
[1736538860008,0.30313,3298.8,3298.7,0.30313]
[1736538860202,0.30314,3298.7,3298.6,0.30313]
[1736538860400,0.75775,3299.1,3298.4,0.4362]
[1736538860599,0.30315,3298.6,3298.5,41.10314]
[1736538861402,0.30315,3298.6,3298.5,40.8]
[1736538861807,0.30315,3298.6,3298.5,41.10315]
[1736538862004,0.30315,3298.6,3298.5,40.8]
[1736538862404,3.6705,3298.8,3298.0,0.4658]
[1736538862607,0.30318,3298.1,3298.0,0.76899]
[1736538862809,0.30319,3298.0,3297.9,3.2078]
[1736538863004,0.30319,3298.0,3297.9,3.511]
[1736538863407,0.30319,3298.0,3297.9,3.2078]
[1736538863605,0.30319,3298.0,3297.9,3.511]
[1736538863810,0.30319,3298.0,3297.9,3.2078]
[1736538865510,0.30319,3298.0,3297.9,3.511]
[1736538866607,0.30319,3298.0,3297.9,3.2078]
[1736538867213,0.30319,3298.0,3297.9,3.511]
[1736538869612,0.30319,3298.0,3297.9,0.3032]
[1736538870709,0.30322,3297.9,3297.8,0.30321]
[1736538871519,0.30322,3297.8,3297.7,0.30322]
[1736538871716,0.30322,3297.7,3297.6,40.8]
[1736538872412,0.75012,3297.7,3297.6,40.8]
[1736538872619,0.30327,3297.2,3297.1,3.98377]
[1736538872920,1.51616,3297.6,3297.2,0.30326]
[1736538872921,0.30327,3297.3,3297.2,0.30326]
[1736538873217,0.30325,3297.5,3297.4,0.30324]
[1736538873418,0.74604,3297.6,3297.5,0.30324]
[1736538873619,0.30324,3297.6,3297.5,0.30324]
[1736538874620,3.2078,3298.4,3297.5,0.30324]
[1736538874621,0.952,3298.6,3297.7,0.75805]
[1736538874916,0.30316,3298.4,3298.3,0.30316]
[1736538875219,0.952,3298.6,3298.3,40.8]
[1736538875523,0.30315,3298.5,3298.4,0.30315]
[1736538876023,0.30316,3298.4,3298.3,41.10316]
[1736538876525,0.30312,3298.9,3298.7,0.30312]
[1736538876720,0.9346,3299.3,3298.6,3.2078]
[1736538876922,0.9346,3299.3,3298.8,0.30312]
[1736538877224,0.30311,3299.0,3298.8,0.30312]